[Event "MČR juniorů a juniorek v rapid šachu 2023"]
[Site "Czech Republic"]
[Date "2023.09.23"]
[Round "2.21"]
[White "Nikolinko, Tomas"]
[Black "Slaby, Matej"]
[Result "0-1"]
[TimeControl "20 min + 5 sec per move"]
[WhiteFideId "389749"]
[BlackFideId "23734876"]
[WhiteElo "1327"]
[BlackElo "1922"]

1. e4 {[%clk 00:20:09]} d5 {[%clk 00:20:04]} {[%emt 00:00:07]} 2. exd5 {[%clk
00:20:10]} {[%emt 00:00:04]} Qxd5 {[%clk 00:20:07]} {[%emt 00:00:02]} 3. Nc3
{[%clk 00:20:13]} {[%emt 00:00:02]} Qd6 {[%clk 00:20:11]} 4. Nf3 {[%clk
00:20:00]} {[%emt 00:00:18]} Nf6 {[%clk 00:19:38]} {[%emt 00:00:38]} 5. Nb5
{[%clk 00:18:47]} {[%emt 00:01:19]} Qd8 {[%clk 00:19:28]} {[%emt 00:00:14]} 6.
d4 {[%clk 00:18:36]} {[%emt 00:00:16]} a6 {[%clk 00:19:22]} {[%emt 00:00:12]} 7.
Nc3 {[%clk 00:18:27]} {[%emt 00:00:13]} Bg4 {[%clk 00:19:25]} {[%emt 00:00:02]}
8. Be3 {[%clk 00:18:03]} {[%emt 00:00:29]} e6 {[%clk 00:19:18]} {[%emt
00:00:13]} 9. h3 {[%emt 00:00:10]} Bh5 {[%clk 00:19:18]} {[%emt 00:00:01]} 10.
g4 {[%clk 00:17:59]} {[%emt 00:00:08]} Bg6 {[%clk 00:19:21]} {[%emt 00:00:02]}
11. Ne5 {[%clk 00:17:51]} {[%emt 00:00:12]} Be7 {[%clk 00:18:13]} {[%emt
00:01:13]} 12. Nxg6 {[%clk 00:17:43]} {[%emt 00:00:13]} hxg6 {[%clk 00:18:17]}
{[%emt 00:00:02]} 13. Bg2 {[%clk 00:17:43]} {[%emt 00:00:05]} c6 {[%clk
00:18:11]} {[%emt 00:00:11]} 14. Qd2 {[%clk 00:17:04]} {[%emt 00:00:44]} Nbd7
{[%clk 00:18:10]} {[%emt 00:00:06]} 15. O-O-O {[%clk 00:17:01]} {[%emt
00:00:08]} Nd5 {[%clk 00:17:37]} {[%emt 00:00:38]} 16. Nxd5 {[%clk 00:16:08]}
{[%emt 00:00:58]} cxd5 {[%clk 00:17:37]} {[%emt 00:00:06]} 17. Rhe1 {[%clk
00:14:07]} {[%emt 00:02:06]} Rc8 {[%clk 00:15:52]} {[%emt 00:01:50]} 18. c3
{[%clk 00:10:37]} {[%emt 00:03:35]} b5 {[%clk 00:13:50]} {[%emt 00:02:07]} 19.
Kb1 {[%clk 00:09:53]} {[%emt 00:00:49]} O-O {[%clk 00:12:22]} {[%emt 00:01:32]}
20. g5 {[%clk 00:08:50]} {[%emt 00:01:08]} Qa5 {[%clk 00:11:13]} {[%emt
00:01:14]} 21. Rc1 {[%clk 00:07:50]} {[%emt 00:01:05]} b4 {[%clk 00:11:04]}
{[%emt 00:00:13]} 22. Qc2 {[%clk 00:05:03]} {[%emt 00:02:52]} bxc3 {[%clk
00:10:38]} {[%emt 00:00:32]} 23. bxc3 {[%clk 00:05:02]} {[%emt 00:00:06]} Ba3
{[%emt 00:01:19]} 24. Bf1 {[%emt 00:00:14]} Rb8+ {[%emt 00:00:31]} 25. Ka1
{[%clk 00:03:23]} {[%emt 00:00:05]} Bb2+ {[%emt 00:00:04]} 26. Qxb2 {[%clk
00:03:22]} {[%emt 00:00:03]} Rxb2 {[%clk 00:10:34]} {[%emt 00:00:01]} 27. Kxb2
{[%clk 00:03:10]} {[%emt 00:00:06]} Rb8+ 28. Ka1 {[%emt 00:01:31]} Rc8 {[%emt
00:00:09]} 29. Bd2 {[%clk 00:02:47]} {[%emt 00:00:17]} Nb6 {[%clk 00:09:17]}
0-1

[Event "MČR juniorů a juniorek v rapid šachu 2023"]
[Site "Czech Republic"]
[Date "2023.09.23"]
[Round "2.22"]
[White "Sulc, Jakub"]
[Black "Jun, Rostislav"]
[Result "1-0"]
[TimeControl "20 min + 5 sec per move"]
[WhiteFideId "394050"]
[BlackFideId "23719524"]
[WhiteElo "1920"]
[BlackElo "1317"]

1. c4 {[%clk 00:20:08]} d6 {[%clk 00:20:05]} {[%emt 00:00:05]} 2. g3 {[%clk
00:20:12]} {[%emt 00:00:02]} c5 {[%clk 00:20:04]} {[%emt 00:00:06]} 3. Bg2
{[%clk 00:20:16]} Nc6 {[%clk 00:20:00]} {[%emt 00:00:09]} 4. Nc3 {[%clk
00:20:19]} {[%emt 00:00:02]} Nf6 {[%clk 00:20:00]} {[%emt 00:00:05]} 5. d3
{[%clk 00:20:21]} {[%emt 00:00:03]} Bd7 {[%clk 00:19:57]} {[%emt 00:00:08]} 6.
e4 {[%clk 00:20:17]} {[%emt 00:00:09]} e5 {[%clk 00:19:17]} {[%emt 00:00:45]} 7.
Nge2 {[%clk 00:20:20]} {[%emt 00:00:01]} Be7 {[%clk 00:19:17]} {[%emt
00:00:06]} 8. O-O {[%clk 00:20:23]} {[%emt 00:00:01]} O-O {[%clk 00:19:20]}
{[%emt 00:00:03]} 9. f4 {[%clk 00:20:27]} {[%emt 00:00:02]} a6 {[%clk
00:18:45]} {[%emt 00:00:40]} 10. h3 {[%clk 00:19:51]} {[%emt 00:00:40]} Qc7
{[%clk 00:18:01]} {[%emt 00:00:49]} 11. f5 {[%clk 00:19:47]} {[%emt 00:00:09]}
Nd4 {[%clk 00:17:57]} {[%emt 00:00:08]} 12. g4 {[%clk 00:19:37]} {[%emt
00:00:16]} Bc6 {[%clk 00:16:30]} {[%emt 00:01:33]} 13. g5 {[%clk 00:18:45]}
{[%emt 00:00:56]} Nd7 {[%clk 00:16:09]} {[%emt 00:00:25]} 14. Nxd4 {[%clk
00:17:13]} {[%emt 00:01:38]} exd4 {[%clk 00:15:58]} {[%emt 00:00:16]} 15. Ne2
{[%clk 00:17:17]} {[%emt 00:00:01]} Ne5 {[%clk 00:15:53]} {[%emt 00:00:10]} 16.
f6 {[%clk 00:16:31]} {[%emt 00:00:51]} Bd8 {[%clk 00:15:55]} {[%emt 00:00:03]}
17. fxg7 {[%clk 00:15:34]} {[%emt 00:01:02]} Kxg7 {[%clk 00:15:55]} {[%emt
00:00:04]} 18. Ng3 {[%clk 00:14:36]} {[%emt 00:01:03]} h6 {[%clk 00:13:31]}
{[%emt 00:02:29]} 19. Nf5+ {[%clk 00:13:00]} {[%emt 00:01:41]} Kh7 {[%clk
00:12:58]} {[%emt 00:00:39]} 20. Qh5 {[%clk 00:13:01]} {[%emt 00:00:04]} 1-0

[Event "MČR juniorů a juniorek v rapid šachu 2023"]
[Site "Czech Republic"]
[Date "2023.09.23"]
[Round "2.23"]
[White "Glasbergerova, Lucie"]
[Black "Mrazek, Adam"]
[Result "0-1"]
[TimeControl "20 min + 5 sec per move"]
[WhiteFideId "23725184"]
[BlackFideId "23725010"]
[WhiteElo "1314"]
[BlackElo "1753"]

1. e4 {[%clk 00:20:08]} {[%emt 00:00:02]} e6 {[%clk 00:20:01]} {[%emt
00:00:10]} 2. d4 {[%clk 00:20:05]} {[%emt 00:00:08]} d5 {[%clk 00:20:03]}
{[%emt 00:00:02]} 3. e5 {[%clk 00:19:59]} {[%emt 00:00:11]} c5 {[%clk
00:19:58]} {[%emt 00:00:11]} 4. c3 {[%clk 00:19:54]} {[%emt 00:00:10]} Nc6
{[%clk 00:19:55]} {[%emt 00:00:08]} 5. Nf3 {[%clk 00:19:54]} {[%emt 00:00:05]}
Bd7 {[%clk 00:19:29]} {[%emt 00:00:32]} 6. Be3 {[%clk 00:19:37]} {[%emt
00:00:21]} Qc7 {[%clk 00:19:15]} {[%emt 00:00:20]} 7. Bb5 {[%clk 00:18:12]}
{[%emt 00:01:30]} cxd4 {[%clk 00:17:06]} {[%emt 00:02:14]} 8. cxd4 {[%clk
00:17:46]} {[%emt 00:00:30]} Qa5+ {[%clk 00:17:04]} {[%emt 00:00:07]} 9. Nc3
{[%clk 00:17:24]} {[%emt 00:00:27]} Bb4 {[%clk 00:17:06]} {[%emt 00:00:04]} 10.
Bxc6 {[%clk 00:14:46]} {[%emt 00:02:41]} Bxc3+ {[%clk 00:17:03]} {[%emt
00:00:09]} 11. bxc3 {[%clk 00:14:48]} {[%emt 00:00:03]} Qxc3+ {[%clk 00:17:00]}
{[%emt 00:00:08]} 12. Bd2 {[%clk 00:14:39]} {[%emt 00:00:14]} Qxc6 {[%clk
00:17:00]} {[%emt 00:00:05]} 13. O-O {[%clk 00:14:12]} {[%emt 00:00:31]} Ne7
{[%clk 00:16:39]} {[%emt 00:00:27]} 14. Rb1 {[%clk 00:13:41]} {[%emt 00:00:36]}
O-O {[%clk 00:16:20]} {[%emt 00:00:23]} 15. Qe2 {[%clk 00:12:43]} {[%emt
00:01:03]} b6 {[%clk 00:14:21]} {[%emt 00:02:04]} 16. Rfc1 {[%clk 00:12:34]}
{[%emt 00:00:14]} Qb7 {[%clk 00:14:23]} {[%emt 00:00:04]} 17. Bb4 {[%clk
00:11:33]} {[%emt 00:01:05]} Rfe8 {[%clk 00:13:05]} {[%emt 00:01:23]} 18. Bd6
{[%clk 00:11:01]} {[%emt 00:00:36]} Rac8 {[%clk 00:12:39]} {[%emt 00:00:31]} 19.
Qd2 {[%clk 00:09:39]} {[%emt 00:01:27]} Nf5 {[%clk 00:11:15]} {[%emt 00:01:29]}
20. Bb4 {[%clk 00:08:11]} {[%emt 00:01:32]} Bb5 {[%clk 00:10:51]} {[%emt
00:00:31]} 21. Qf4 {[%clk 00:07:33]} {[%emt 00:00:43]} Bc4 {[%clk 00:09:45]}
{[%emt 00:01:11]} 22. a3 {[%clk 00:07:25]} {[%emt 00:00:13]} Rc7 {[%clk
00:07:38]} {[%emt 00:02:13]} 23. Nh4 {[%clk 00:07:07]} {[%emt 00:00:22]} Nxh4
{[%clk 00:06:09]} {[%emt 00:01:35]} 24. Qxh4 {[%clk 00:07:09]} {[%emt
00:00:03]} Rec8 {[%clk 00:06:02]} {[%emt 00:00:11]} 25. Bd6 {[%clk 00:06:26]}
{[%emt 00:00:48]} Rc6 {[%clk 00:05:26]} {[%emt 00:00:42]} 26. h3 {[%clk
00:05:53]} {[%emt 00:00:36]} Bd3 {[%clk 00:04:59]} {[%emt 00:00:33]} 27. Rxc6
{[%clk 00:05:39]} {[%emt 00:00:19]} Qxc6 {[%clk 00:05:03]} {[%emt 00:00:02]} 28.
Rd1 {[%clk 00:05:21]} {[%emt 00:00:23]} Be4 {[%clk 00:04:11]} {[%emt 00:00:56]}
29. Re1 {[%clk 00:05:12]} {[%emt 00:00:15]} Qc3 {[%clk 00:04:06]} {[%emt
00:00:11]} 30. Re3 {[%clk 00:04:58]} {[%emt 00:00:18]} Qxd4 {[%clk 00:03:36]}
{[%emt 00:00:36]} 31. Kh2 {[%clk 00:02:10]} {[%emt 00:02:53]} h6 {[%clk
00:03:12]} {[%emt 00:00:29]} 32. Rg3 {[%clk 00:00:40]} {[%emt 00:01:35]} Qd2
{[%clk 00:01:24]} {[%emt 00:01:54]} 33. Re3 {[%clk 00:00:08]} {[%emt 00:00:37]}
Kh7 {[%clk 00:01:14]} {[%emt 00:00:14]} 34. Qe7 {[%clk 00:00:09]} {[%emt
00:00:04]} Qxf2 {[%clk 00:01:02]} {[%emt 00:00:17]} 35. Rg3 {[%clk 00:00:13]}
{[%emt 00:00:02]} Rc1 {[%clk 00:00:25]} {[%emt 00:00:41]} 36. h4 {[%clk
00:00:06]} {[%emt 00:00:12]} Qg1+ {[%clk 00:00:17]} {[%emt 00:00:13]} 37. Kh3
{[%clk 00:00:10]} {[%emt 00:00:02]} Bf5+ {[%clk 00:00:18]} {[%emt 00:00:05]} 38.
Rg4 {[%clk 00:00:12]} {[%emt 00:00:02]} Bxg4+ {[%clk 00:00:20]} {[%emt
00:00:03]} 39. Kxg4 {[%clk 00:00:15]} {[%emt 00:00:02]} Qxg2+ {[%clk 00:00:20]}
{[%emt 00:00:05]} 40. Kf4 {[%clk 00:00:08]} {[%emt 00:00:11]} Rc4+ {[%clk
00:00:20]} {[%emt 00:00:05]} 41. Ke3 {[%clk 00:00:09]} {[%emt 00:00:05]} Qe4+
{[%clk 00:00:10]} {[%emt 00:00:14]} 42. Kf2 {[%clk 00:00:11]} {[%emt 00:00:03]}
Rc2+ {[%clk 00:00:13]} {[%emt 00:00:03]} 43. Kg3 {[%clk 00:00:13]} {[%emt
00:00:02]} Qe3+ {[%clk 00:00:09]} {[%emt 00:00:10]} 0-1

[Event "MČR juniorů a juniorek v rapid šachu 2023"]
[Site "Czech Republic"]
[Date "2023.09.23"]
[Round "2.24"]
[White "Tvaroh, Vitezslav"]
[Black "Beran, Jakub"]
[Result "1/2-1/2"]
[TimeControl "20 min + 5 sec per move"]
[WhiteFideId "23704209"]
[BlackFideId "23727071"]
[WhiteElo "1303"]
[BlackElo "1645"]

1. e4 {[%clk 00:20:09]} c5 {[%clk 00:20:07]} {[%emt 00:00:04]} 2. Nf3 {[%clk
00:20:11]} {[%emt 00:00:02]} Nc6 {[%clk 00:20:11]} {[%emt 00:00:01]} 3. d4
{[%clk 00:20:05]} {[%emt 00:00:11]} cxd4 {[%clk 00:20:14]} {[%emt 00:00:02]} 4.
Nxd4 {[%clk 00:20:09]} {[%emt 00:00:01]} d6 {[%clk 00:20:12]} {[%emt 00:00:07]}
5. Nc3 {[%clk 00:19:35]} {[%emt 00:00:38]} Nf6 {[%clk 00:20:11]} {[%emt
00:00:07]} 6. Be3 {[%clk 00:19:19]} {[%emt 00:00:21]} g6 {[%clk 00:20:09]}
{[%emt 00:00:07]} 7. f3 {[%clk 00:19:19]} {[%emt 00:00:06]} Bg7 {[%clk
00:20:11]} {[%emt 00:00:02]} 8. Qd2 {[%clk 00:18:53]} {[%emt 00:00:32]} O-O
{[%clk 00:19:48]} {[%emt 00:00:27]} 9. g4 {[%clk 00:18:49]} {[%emt 00:00:09]}
Nd7 {[%clk 00:18:39]} {[%emt 00:01:14]} 10. h4 {[%clk 00:17:45]} {[%emt
00:01:08]} Nde5 {[%clk 00:18:35]} {[%emt 00:00:09]} 11. Be2 {[%clk 00:17:13]}
{[%emt 00:00:37]} Qc7 {[%clk 00:15:49]} {[%emt 00:02:52]} 12. h5 {[%clk
00:15:57]} {[%emt 00:01:21]} Nxd4 {[%clk 00:15:09]} {[%emt 00:00:45]} 13. Bxd4
{[%clk 00:15:38]} {[%emt 00:00:24]} h6 {[%clk 00:15:06]} {[%emt 00:00:07]} 14.
f4 {[%clk 00:12:01]} {[%emt 00:03:43]} Nc4 {[%clk 00:10:12]} {[%emt 00:04:59]}
15. Bxc4 {[%clk 00:10:29]} {[%emt 00:01:38]} Qxc4 {[%clk 00:10:14]} {[%emt
00:00:02]} 16. Bxg7 {[%clk 00:10:15]} {[%emt 00:00:19]} Kxg7 {[%clk 00:10:09]}
{[%emt 00:00:11]} 17. hxg6 {[%clk 00:08:12]} {[%emt 00:02:07]} fxg6 {[%clk
00:09:57]} {[%emt 00:00:17]} 18. f5 {[%clk 00:07:47]} {[%emt 00:00:32]} g5
{[%clk 00:09:16]} {[%emt 00:00:45]} 19. O-O-O {[%clk 00:07:44]} {[%emt
00:00:08]} Rh8 {[%clk 00:08:48]} {[%emt 00:00:32]} 20. Nd5 {[%clk 00:06:15]}
{[%emt 00:01:35]} Kf7 {[%clk 00:05:14]} {[%emt 00:03:34]} 21. b3 {[%clk
00:05:15]} {[%emt 00:01:09]} Qc5 {[%clk 00:03:54]} {[%emt 00:01:25]} 22. Kb1
{[%clk 00:02:52]} {[%emt 00:02:29]} b6 {[%clk 00:02:26]} {[%emt 00:01:33]} 23.
Rde1 {[%clk 00:01:47]} {[%emt 00:01:09]} Bb7 {[%clk 00:02:09]} {[%emt
00:00:19]} 24. c4 {[%clk 00:01:34]} {[%emt 00:00:22]} Rad8 {[%clk 00:01:22]}
{[%emt 00:00:48]} 25. Qc3 {[%clk 00:01:33]} {[%emt 00:00:10]} b5 {[%clk
00:00:45]} {[%emt 00:00:42]} 26. e5 {[%clk 00:01:06]} {[%emt 00:00:32]} Bxd5
{[%clk 00:00:27]} {[%emt 00:00:23]} 27. e6+ {[%clk 00:01:09]} {[%emt 00:00:01]}
Kg8 {[%clk 00:00:18]} {[%emt 00:00:14]} 28. Qa5 {[%clk 00:00:56]} {[%emt
00:00:20]} Rf8 {[%clk 00:00:16]} {[%emt 00:00:07]} 29. cxd5 {[%clk 00:00:59]}
{[%emt 00:00:02]} Qxd5 {[%clk 00:00:19]} {[%emt 00:00:02]} 30. Qxa7 {[%clk
00:00:53]} {[%emt 00:00:10]} Rh7 {[%clk 00:00:19]} {[%emt 00:00:06]} 1/2-1/2

[Event "MČR juniorů a juniorek v rapid šachu 2023"]
[Site "Czech Republic"]
[Date "2023.09.23"]
[Round "2.25"]
[White "Pistej, Tomas"]
[Black "Halama, Tomas"]
[Result "1-0"]
[TimeControl "20 min + 5 sec per move"]
[WhiteFideId "23750740"]
[BlackFideId "397970"]
[WhiteElo "1640"]
[BlackElo "1306"]

1. e4 {[%clk 00:20:07]} {[%emt 00:00:02]} c5 {[%clk 00:20:08]} {[%emt
00:00:02]} 2. Nc3 {[%clk 00:20:09]} {[%emt 00:00:03]} Nc6 {[%clk 00:20:11]}
{[%emt 00:00:02]} 3. Bb5 {[%clk 00:20:05]} {[%emt 00:00:09]} d6 {[%clk
00:20:12]} {[%emt 00:00:04]} 4. Bxc6+ {[%clk 00:20:07]} {[%emt 00:00:04]} bxc6
{[%clk 00:20:15]} {[%emt 00:00:01]} 5. f4 {[%clk 00:20:04]} {[%emt 00:00:08]}
Nf6 {[%clk 00:19:59]} {[%emt 00:00:20]} 6. Nf3 {[%clk 00:19:58]} {[%emt
00:00:12]} Ba6 {[%clk 00:19:55]} {[%emt 00:00:10]} 7. d3 {[%clk 00:19:37]}
{[%emt 00:00:25]} e6 {[%clk 00:19:41]} {[%emt 00:00:18]} 8. O-O {[%clk
00:18:55]} Be7 {[%clk 00:19:35]} {[%emt 00:01:00]} 9. Re1 {[%clk 00:18:10]} O-O
{[%clk 00:19:15]} {[%emt 00:01:12]} 10. e5 {[%clk 00:17:36]} Nd5 {[%clk
00:18:45]} {[%emt 00:01:16]} 11. Ne4 {[%clk 00:16:39]} Nc7 {[%clk 00:18:45]} 12.
exd6 {[%clk 00:16:39]} Bxd6 {[%clk 00:13:38]} {[%emt 00:07:05]} 13. Be3 {[%clk
00:14:32]} Qe7 {[%clk 00:13:17]} {[%emt 00:01:57]} 14. Ne5 {[%clk 00:13:10]}
Bb7 {[%clk 00:13:17]} 15. Nc4 {[%clk 00:13:10]} Nd5 {[%clk 00:13:17]} 16. Nexd6
{[%clk 00:13:10]} Nxe3 {[%clk 00:13:17]} 17. Rxe3 {[%clk 00:13:10]} Ba6 {[%clk
00:13:17]} 18. Qe2 {[%clk 00:13:10]} Rfd8 {[%clk 00:13:17]} 19. Ne4 {[%clk
00:13:10]} Rab8 {[%clk 00:13:17]} 20. b3 {[%clk 00:13:10]} Bxc4 21. dxc4 {[%clk
00:08:50]} Rb7 {[%clk 00:06:48]} {[%emt 00:00:24]} 22. Rd1 {[%clk 00:08:33]}
{[%emt 00:00:21]} Rxd1+ {[%clk 00:05:51]} {[%emt 00:01:02]} 23. Qxd1 {[%clk
00:08:35]} {[%emt 00:00:03]} Rd7 {[%clk 00:05:53]} {[%emt 00:00:03]} 24. Rd3
{[%clk 00:08:33]} {[%emt 00:00:07]} Rxd3 {[%clk 00:05:46]} {[%emt 00:00:12]} 25.
Qxd3 {[%clk 00:08:35]} {[%emt 00:00:04]} g6 {[%clk 00:05:19]} {[%emt 00:00:30]}
26. Qd6 {[%clk 00:08:22]} {[%emt 00:00:19]} Qh4 {[%clk 00:04:27]} {[%emt
00:00:57]} 27. g3 {[%clk 00:07:55]} {[%emt 00:00:32]} Qg4 {[%clk 00:04:09]}
{[%emt 00:00:21]} 28. Nf6+ {[%clk 00:07:58]} {[%emt 00:00:04]} 1-0

[Event "MČR juniorů a juniorek v rapid šachu 2023"]
[Site "Czech Republic"]
[Date "2023.09.23"]
[Round "2.26"]
[White "Bela, Lukas"]
[Black "Boff, Vojtech"]
[Result "0-1"]
[TimeControl "20 min + 5 sec per move"]
[WhiteFideId "23738545"]
[BlackFideId "23733969"]
[WhiteElo "1297"]
[BlackElo "1632"]

1. e4 {[%clk 00:20:05]} {[%emt 00:00:05]} c5 {[%clk 00:20:04]} {[%emt
00:00:07]} 2. f4 {[%clk 00:20:04]} {[%emt 00:00:05]} d5 {[%clk 00:20:02]}
{[%emt 00:00:07]} 3. Nc3 {[%clk 00:20:05]} {[%emt 00:00:05]} dxe4 {[%clk
00:20:00]} {[%emt 00:00:07]} 4. Nxe4 {[%clk 00:20:02]} {[%emt 00:00:08]} e6
{[%clk 00:19:57]} {[%emt 00:00:08]} 5. Nf3 {[%clk 00:20:00]} {[%emt 00:00:07]}
Nf6 {[%clk 00:19:48]} {[%emt 00:00:13]} 6. Ng3 {[%clk 00:19:27]} {[%emt
00:00:38]} Nc6 {[%clk 00:19:30]} {[%emt 00:00:23]} 7. Bc4 {[%clk 00:19:13]}
{[%emt 00:00:19]} Bd6 {[%clk 00:18:52]} {[%emt 00:00:43]} 8. d3 {[%clk
00:19:00]} {[%emt 00:00:19]} Qc7 {[%clk 00:18:31]} {[%emt 00:00:25]} 9. Ne2
{[%clk 00:18:49]} {[%emt 00:00:16]} a6 {[%clk 00:18:03]} {[%emt 00:00:33]} 10.
a3 {[%clk 00:18:18]} {[%emt 00:00:37]} b5 {[%clk 00:18:04]} {[%emt 00:00:04]}
11. Ba2 {[%clk 00:18:07]} {[%emt 00:00:16]} Bb7 {[%clk 00:17:55]} {[%emt
00:00:14]} 12. O-O {[%clk 00:17:58]} {[%emt 00:00:14]} O-O {[%clk 00:17:39]}
{[%emt 00:00:20]} 13. d4 {[%clk 00:17:30]} {[%emt 00:00:33]} cxd4 {[%clk
00:17:39]} {[%emt 00:00:05]} 14. Nexd4 {[%clk 00:17:26]} {[%emt 00:00:10]} Nxd4
{[%clk 00:17:08]} {[%emt 00:00:36]} 15. Qxd4 {[%clk 00:17:18]} {[%emt
00:00:13]} Bc5 {[%clk 00:17:11]} {[%emt 00:00:01]} 0-1

[Event "MČR juniorů a juniorek v rapid šachu 2023"]
[Site "Czech Republic"]
[Date "2023.09.23"]
[Round "2.27"]
[White "Dvorak, Jan"]
[Black "Cinkova, Vicky"]
[Result "0-1"]
[TimeControl "20 min + 5 sec per move"]
[WhiteFideId "23730722"]
[BlackFideId "23725826"]
[WhiteElo "1624"]
[BlackElo "1300"]

1. e4 {[%clk 00:20:08]} c5 {[%clk 00:18:50]} {[%emt 00:01:20]} 2. Nf3 {[%clk
00:20:11]} {[%emt 00:00:03]} Nc6 {[%clk 00:18:53]} {[%emt 00:00:02]} 3. d4
{[%clk 00:20:13]} {[%emt 00:00:03]} cxd4 {[%clk 00:18:56]} {[%emt 00:00:02]} 4.
Nxd4 {[%clk 00:20:17]} {[%emt 00:00:01]} g6 {[%clk 00:19:00]} {[%emt 00:00:01]}
5. Be3 {[%clk 00:20:09]} {[%emt 00:00:12]} Bg7 {[%clk 00:19:03]} {[%emt
00:00:02]} 6. Nc3 {[%clk 00:19:27]} {[%emt 00:00:47]} d6 {[%clk 00:18:53]}
{[%emt 00:00:15]} 7. Be2 {[%clk 00:19:15]} {[%emt 00:00:16]} Nf6 {[%clk
00:18:50]} {[%emt 00:00:09]} 8. O-O {[%clk 00:19:11]} {[%emt 00:00:09]} O-O
{[%clk 00:18:51]} {[%emt 00:00:03]} 9. f4 {[%clk 00:18:43]} {[%emt 00:00:34]}
Bd7 {[%clk 00:16:59]} {[%emt 00:01:57]} 10. Kh1 {[%clk 00:18:39]} {[%emt
00:00:09]} Rc8 {[%clk 00:16:31]} {[%emt 00:00:33]} 11. Bf3 {[%clk 00:16:38]}
{[%emt 00:02:05]} a6 {[%clk 00:14:53]} {[%emt 00:01:44]} 12. Rf2 {[%clk
00:15:16]} {[%emt 00:01:27]} Qc7 {[%clk 00:14:13]} {[%emt 00:00:45]} 13. Nd5
{[%clk 00:14:13]} {[%emt 00:01:07]} Nxd5 {[%clk 00:13:42]} {[%emt 00:00:37]} 14.
exd5 {[%clk 00:14:16]} {[%emt 00:00:02]} Nxd4 {[%clk 00:13:44]} {[%emt
00:00:02]} 15. Bxd4 {[%clk 00:14:17]} {[%emt 00:00:04]} Bxd4 {[%clk 00:12:44]}
{[%emt 00:01:05]} 16. Qxd4 {[%clk 00:14:19]} {[%emt 00:00:02]} Bf5 {[%clk
00:12:48]} {[%emt 00:00:02]} 17. c3 {[%clk 00:13:47]} {[%emt 00:00:38]} Qc4
{[%clk 00:12:22]} {[%emt 00:00:30]} 18. Qxc4 {[%clk 00:12:45]} {[%emt
00:01:07]} Rxc4 {[%clk 00:12:26]} {[%emt 00:00:01]} 19. Be2 {[%clk 00:12:01]}
{[%emt 00:00:49]} Rc5 {[%clk 00:12:04]} {[%emt 00:00:27]} 20. Bf3 {[%clk
00:10:13]} {[%emt 00:01:53]} Rfc8 {[%clk 00:10:51]} {[%emt 00:01:15]} 21. g4
{[%clk 00:09:45]} {[%emt 00:00:35]} Bd3 {[%clk 00:09:53]} {[%emt 00:01:03]} 22.
Rd1 {[%clk 00:08:57]} {[%emt 00:00:53]} Bb5 {[%clk 00:09:01]} {[%emt 00:00:56]}
23. f5 {[%clk 00:08:16]} {[%emt 00:00:46]} Bd7 {[%clk 00:07:34]} {[%emt
00:01:33]} 24. Be4 {[%clk 00:07:21]} {[%emt 00:01:00]} Rc4 {[%clk 00:07:02]}
{[%emt 00:00:37]} 25. Re1 {[%clk 00:06:39]} {[%emt 00:00:46]} Re8 {[%clk
00:06:38]} {[%emt 00:00:29]} 26. h3 {[%clk 00:06:07]} {[%emt 00:00:38]} b5
{[%clk 00:05:19]} {[%emt 00:01:24]} 27. Re3 {[%clk 00:04:17]} {[%emt 00:01:54]}
Bc8 {[%clk 00:04:38]} {[%emt 00:00:46]} 28. Bc2 {[%clk 00:02:24]} {[%emt
00:01:55]} Bb7 {[%clk 00:03:59]} {[%emt 00:00:48]} 29. Rd2 {[%clk 00:00:41]}
{[%emt 00:01:48]} Rf4 {[%clk 00:03:38]} {[%emt 00:00:26]} 30. Be4 {[%clk
00:00:09]} {[%emt 00:00:37]} Bc8 {[%clk 00:02:53]} {[%emt 00:00:50]} 31. Rg2
{[%clk 00:00:09]} {[%emt 00:00:05]} Rf1+ {[%clk 00:02:44]} {[%emt 00:00:13]} 32.
Kh2 {[%clk 00:00:13]} {[%emt 00:00:02]} Kf8 {[%clk 00:02:44]} {[%emt 00:00:06]}
33. fxg6 {[%clk 00:00:10]} {[%emt 00:00:08]} hxg6 {[%clk 00:02:47]} {[%emt
00:00:02]} 34. Rf3 {[%clk 00:00:11]} {[%emt 00:00:03]} Re1 {[%clk 00:02:17]}
{[%emt 00:00:35]} 35. Bxg6 {[%clk 00:00:12]} {[%emt 00:00:04]} Rd8 {[%clk
00:01:46]} {[%emt 00:00:37]} 36. Rxf7+ {[%clk 00:00:12]} {[%emt 00:00:04]} Kg8
{[%clk 00:01:50]} 37. Rgf2 {[%clk 00:00:13]} {[%emt 00:00:05]} Bb7 {[%clk
00:01:36]} {[%emt 00:00:18]} 38. Rxe7 {[%clk 00:00:14]} {[%emt 00:00:04]} Rxe7
{[%clk 00:01:38]} {[%emt 00:00:03]} 0-1

[Event "MČR juniorů a juniorek v rapid šachu 2023"]
[Site "Czech Republic"]
[Date "2023.09.23"]
[Round "2.29"]
[White "Housa, Vojtech"]
[Black "Krajicek, Matthew"]
[Result "1-0"]
[TimeControl "20 min + 5 sec per move"]
[WhiteFideId "23736364"]
[BlackFideId "23740175"]
[WhiteElo "1539"]
[BlackElo "1283"]

1. e4 {[%clk 00:20:08]} {[%emt 00:00:01]} d5 {[%clk 00:20:07]} {[%emt
00:00:04]} 2. Nc3 {[%clk 00:20:09]} {[%emt 00:00:03]} d4 {[%clk 00:20:08]}
{[%emt 00:00:04]} 3. Nce2 {[%clk 00:20:14]} Nc6 {[%clk 00:20:05]} {[%emt
00:00:07]} 4. Ng3 {[%clk 00:20:18]} e5 {[%clk 00:20:01]} {[%emt 00:00:11]} 5.
Bc4 {[%clk 00:20:21]} {[%emt 00:00:02]} Bc5 {[%clk 00:19:31]} {[%emt 00:00:35]}
6. d3 {[%clk 00:20:19]} {[%emt 00:00:07]} Nge7 {[%clk 00:19:23]} {[%emt
00:00:12]} 7. f4 {[%clk 00:20:12]} {[%emt 00:00:13]} f6 {[%clk 00:19:07]}
{[%emt 00:00:21]} 8. Nf3 {[%clk 00:20:12]} {[%emt 00:00:05]} Bg4 {[%clk
00:18:42]} {[%emt 00:00:29]} 9. O-O {[%clk 00:19:43]} {[%emt 00:00:34]} Na5
{[%clk 00:18:41]} {[%emt 00:00:07]} 10. Bb3 {[%clk 00:19:41]} {[%emt 00:00:07]}
Nxb3 {[%clk 00:18:30]} {[%emt 00:00:15]} 11. axb3 {[%clk 00:19:45]} {[%emt
00:00:01]} O-O {[%clk 00:18:23]} {[%emt 00:00:12]} 12. h3 {[%clk 00:19:39]}
{[%emt 00:00:11]} Bxf3 {[%clk 00:17:50]} {[%emt 00:00:39]} 13. Qxf3 {[%clk
00:19:21]} {[%emt 00:00:23]} Nc6 {[%clk 00:17:46]} {[%emt 00:00:09]} 14. Qg4
{[%clk 00:18:13]} {[%emt 00:01:12]} Qe7 {[%clk 00:16:45]} {[%emt 00:01:07]} 15.
Nf5 {[%clk 00:18:10]} {[%emt 00:00:07]} 1-0